bitfinex/quotes_ETHUSD_20250222
["timestamp","ask_amount","ask_price","bid_price","bid_amount"]
[1740219243568,2.291186,2741.9,2741.5,3.6476]
[1740219243762,0.8169,2741.9,2741.4,3.64765]
[1740219243969,4.46408,2741.9,2741.2,3.64792]
[1740219244164,3.64739,2741.7,2741.2,3.64792]
[1740219244362,3.64738,2741.7,2741.2,3.64792]
[1740219244580,4.46408,2741.9,2741.2,3.648]
[1740219244765,5.34180159,2741.9,2741.2,3.648]
[1740219245126,7.449,2742.0,2741.7,3.64724]
[1740219245622,3.6466,2742.3,2741.7,3.64724]
[1740219246120,4.42206,2742.4,2741.8,3.64722]
[1740219246300,3.64658,2742.3,2741.6,3.6475]
[1740219246495,3.64672,2742.2,2741.7,3.64735]
[1740219246695,0.7755,2742.4,2741.7,3.64735]
[1740219246896,3.64665,2742.3,2741.8,3.64723]
[1740219247123,1.21740404,2742.4,2741.8,3.64723]
[1740219247936,1.21740404,2742.4,2741.9,3.6471]
[1740219248104,1.21740404,2742.4,2741.8,3.64723]
[1740219248300,0.7755,2742.8,2742.4,3.64633]
[1740219248502,0.7755,2742.8,2742.2,3.64661]
[1740219248891,4.42142,2742.8,2742.2,3.64661]
[1740219249114,0.7755,2742.8,2742.2,3.64661]
[1740219249318,0.7755,2742.8,2742.4,3.6464]
[1740219249518,4.42091,2743.2,2742.1,3.64684]
[1740219249719,4.42091,2743.2,2742.5,3.64618]
[1740219250031,5.759538,2743.2,2742.5,3.64618]
[1740219250614,3.64556,2743.1,2742.3,7.07585051]
[1740219250811,3.64579,2742.9,2742.3,7.07585051]
[1740219251032,3.64565,2743.0,2742.4,3.64642]
[1740219251528,0.9405338,2743.0,2742.4,3.64642]
[1740219251728,3.64556,2743.1,2742.6,3.64617]
[1740219251965,2.114128,2743.2,2742.6,3.64617]
[1740219252457,2.114128,2743.2,2742.7,3.64595]
[1740219253112,0.7755,2743.2,2742.6,3.64617]
[1740219253385,0.7755,2743.2,2742.6,7.29224]
[1740219253585,0.7755,2743.2,2742.6,3.64607]
[1740219253964,4.42088,2743.2,2742.6,3.64607]
[1740219254163,0.7755,2743.2,2742.4,3.64643]
[1740219254360,0.7755,2743.2,2742.3,3.42933051]
[1740219254581,0.7755,2743.2,2742.7,3.64592]
[1740219255285,8.96462,2743.8,2742.3,3.6979577]
[1740219255286,5.32,2744.2,2744.1,3.64418]
[1740219255448,3.64211,2745.7,2745.0,0.2553]
[1740219255651,0.364211,2745.7,2745.0,3.38757]
[1740219255890,3.64255,2745.4,2744.5,0.26928471]
[1740219256182,3.64255,2745.4,2744.4,1.44738281]
[1740219256183,1.139711,2745.7,2744.1,4.05379459]
[1740219256348,0.26947649,2746.8,2744.8,0.37577779]
[1740219256555,3.64168,2746.0,2745.3,0.55]
[1740219256887,3.64233,2745.5,2744.6,6.32738281]
[1740219257083,4.006673,2745.5,2744.6,0.55]
[1740219257295,4.006633,2745.5,2744.8,3.42933051]
[1740219257662,0.364233,2745.5,2744.8,3.42933051]
[1740219257966,0.7755,2746.0,2745.2,3.64271]
[1740219258176,0.7755,2746.0,2745.4,7.07175051]
[1740219258353,4.41675,2746.4,2745.4,3.42933051]
[1740219258552,3.6414,2746.2,2745.3,7.92776322]
[1740219258866,3.64154,2746.1,2745.3,7.92776322]
[1740219259062,0.728294,2746.0,2745.3,4.28524322]
[1740219259277,0.7755,2746.4,2745.7,4.28524322]
[1740219259455,3.64085,2746.7,2745.7,7.92728322]
[1740219259658,3.64101,2746.5,2745.7,10.61262603]
[1740219259982,0.364101,2746.4,2745.7,14.25464603]
[1740219260202,3.64091,2746.6,2745.7,14.25464603]
[1740219260367,4.44584,2746.8,2745.9,3.64178]
[1740219261007,0.8052,2746.8,2746.0,3.64163]
[1740219261299,0.8052,2746.8,2745.7,10.61262603]
[1740219261495,3.64097,2746.6,2745.8,3.64188]
[1740219261697,0.8052,2746.8,2746.2,3.64135]
[1740219261990,4.44536,2747.2,2746.3,4.28524322]
[1740219262195,4.44536,2747.2,2746.4,1.44738281]
[1740219262563,4.44536,2747.2,2746.4,5.08846281]
[1740219262761,3.64022,2747.1,2746.4,1.44738281]
[1740219262965,0.444542,2747.0,2746.4,1.44738281]
[1740219263294,3.64099,2746.6,2746.4,1.44738281]
[1740219263769,3.64059,2746.8,2746.4,1.44738281]
[1740219263968,0.8052,2747.2,2746.4,1.44738281]
[1740219264174,3.63967,2747.5,2746.5,7.92621322]
[1740219264371,3.64009,2747.2,2746.5,7.92621322]
[1740219264591,4.004239,2747.1,2746.5,4.28524322]
[1740219264797,3.64033,2747.0,2746.4,1.44738281]
[1740219264994,0.364009,2747.1,2746.4,1.44738281]
[1740219265195,3.64099,2746.5,2746.4,1.44738281]
[1740219265397,3.64099,2746.5,2746.1,1.44738281]
[1740219266211,3.64075,2746.7,2746.1,1.44738281]
[1740219266392,3.6409,2746.6,2746.1,1.44738281]
[1740219266704,3.641,2746.5,2746.1,1.44738281]
[1740219266889,3.64075,2746.7,2746.1,1.44738281]
[1740219267078,4.004945,2746.6,2746.1,1.44738281]
[1740219267688,0.364075,2746.6,2746.1,1.44738281]
[1740219268278,3.64102,2746.5,2746.1,1.44738281]
[1740219268870,3.64113,2746.4,2746.1,1.44738281]
[1740219269071,4.004935,2746.6,2746.1,1.44738281]
[1740219269505,3.64103,2746.5,2746.1,1.44738281]
[1740219269803,3.64124,2746.4,2746.1,1.44738281]
[1740219270520,3.64061,2746.8,2746.1,5.73262603]
[1740219270669,3.64074,2746.7,2746.1,5.73262603]
[1740219271179,3.64046,2746.9,2746.4,4.28524322]
[1740219271500,3.64076,2746.7,2746.1,5.73262603]
[1740219271705,0.728144,2746.7,2746.1,1.44738281]
[1740219271876,3.64121,2746.4,2746.1,1.44738281]
[1740219272077,3.64139,2746.2,2746.1,1.44738281]
[1740219272286,3.64121,2746.4,2746.1,1.44738281]
[1740219272485,3.64139,2746.2,2746.1,1.44738281]
[1740219272687,3.64121,2746.4,2746.1,1.44738281]
[1740219273697,3.64087,2746.6,2746.1,1.44738281]
[1740219274068,3.64094,2746.6,2746.1,1.44738281]
[1740219275534,3.64107,2746.5,2746.1,1.44738281]
[1740219275837,3.64073,2746.7,2746.3,4.28524322]
[1740219276655,3.64073,2746.7,2746.3,5.73262603]
[1740219277020,3.64073,2746.7,2746.3,1.44738281]
[1740219277199,3.641,2746.5,2746.3,1.44738281]
[1740219277398,3.64113,2746.4,2746.3,1.44738281]
[1740219278403,3.64258,2745.3,2744.9,3.43]
[1740219278737,3.64244,2745.5,2744.9,3.42128358]
[1740219278918,7.28489,2745.5,2744.9,3.42128358]
[1740219279419,3.64273,2745.2,2744.9,3.42128358]
[1740219279618,3.64273,2745.2,2744.6,12.44349]
[1740219279619,0.8229,2745.8,2744.6,12.22128358]
[1740219279825,3.64285,2745.1,2744.6,8.79128358]
[1740219280336,3.64261,2745.3,2744.6,12.43477358]
[1740219280838,3.64283,2745.2,2744.6,5.37]
[1740219281205,3.64261,2745.3,2744.6,5.37]
[1740219281206,3.64293,2745.1,2744.6,5.37]
[1740219282419,3.64299,2745.0,2744.6,5.37]
[1740219282619,3.64301,2745.0,2744.6,5.37]
[1740219283358,3.64367,2744.5,2744.3,5.37]
[1740219283502,0.8229,2744.8,2744.3,5.37]
[1740219283710,3.64317,2744.9,2744.3,9.01379]
[1740219284103,3.64484,2743.6,2743.1,8.8]
[1740219284308,3.64471,2743.7,2743.1,9.01546]
[1740219284542,3.64471,2743.7,2743.1,5.37]
[1740219285041,3.64471,2743.7,2743.2,3.0]
[1740219285203,3.6445,2743.9,2743.2,6.64536]
[1740219285404,4.46669,2744.4,2743.2,7.28774236]
[1740219285405,4.4668,2744.4,2743.2,7.28774236]
[1740219285609,0.8229,2744.4,2743.5,4.28774236]
[1740219285809,0.8229,2744.4,2743.3,5.37]
[1740219286041,3.64454,2743.9,2743.3,5.37]
[1740219286410,3.64454,2743.9,2743.3,9.01523]
[1740219286710,3.64432,2744.0,2743.4,3.64506]
[1740219286918,3.64445,2743.9,2743.3,5.37]
[1740219287121,3.64467,2743.8,2743.3,5.37]
[1740219287322,3.64445,2743.9,2743.3,5.37]
[1740219287536,3.64445,2743.9,2743.3,9.01522]
[1740219287841,3.64433,2744.0,2743.3,9.01522]
[1740219288034,3.64436,2744.0,2743.4,3.64509]
[1740219288237,3.64421,2744.1,2743.4,3.64509]
[1740219288543,3.64421,2744.1,2743.3,5.37]
[1740219288746,3.64457,2743.9,2743.3,5.37]
[1740219289125,3.64481,2743.7,2743.3,5.37]
[1740219289958,0.8229,2744.4,2743.3,5.37]
[1740219289959,3.64499,2743.5,2743.3,5.37]
[1740219290114,3.64532,2743.3,2742.9,5.37]
[1740219290313,3.64547,2743.2,2742.9,5.37]
[1740219290627,3.64545,2743.2,2742.9,5.37]
[1740219291211,7.29094,2743.2,2742.9,5.37]
[1740219291661,3.64564,2743.0,2742.9,5.37]
[1740219292611,0.8303,2743.6,2742.9,9.65774236]
[1740219292819,3.64537,2743.3,2742.9,5.37]
[1740219293034,3.64534,2743.3,2742.9,5.37]
[1740219293528,0.8303,2743.6,2742.9,5.37]
[1740219293736,7.442,2743.8,2742.9,9.65774236]
[1740219293917,3.64471,2743.7,2743.0,3.64551]
[1740219294113,3.64471,2743.7,2743.1,3.64542]
[1740219294770,3.64474,2743.7,2743.0,3.64551]
[1740219295130,7.442,2743.8,2743.2,3.64537]
[1740219295346,3.64471,2743.7,2743.1,3.64548]
[1740219295518,7.442,2743.8,2742.9,9.65774236]
[1740219295719,3.64511,2743.4,2742.9,9.65774236]
[1740219296046,3.64539,2743.2,2742.9,5.37]
[1740219296471,3.64511,2743.4,2742.9,5.37]
[1740219296637,3.64491,2743.6,2742.9,9.01577]
[1740219296838,3.64512,2743.4,2742.9,5.37]
[1740219297621,7.29035,2743.4,2742.9,5.37]
[1740219298352,3.64539,2743.2,2742.9,5.37]
[1740219298720,0.729035,2743.4,2742.9,5.37]
[1740219298916,3.64548,2743.2,2742.9,5.37]
[1740219299226,3.64517,2743.4,2742.9,5.37]
[1740219299627,3.6449,2743.6,2743.0,3.6456]
[1740219300396,7.28985,2743.6,2743.0,3.6456]
[1740219300571,3.6449,2743.6,2743.0,3.6456]
[1740219301074,7.442,2743.8,2743.5,3.64487]
[1740219301575,7.442,2743.8,2743.7,3.64471]
[1740219301935,3.64303,2745.0,2743.7,3.64471]
[1740219301936,0.8108,2744.7,2744.4,3.64375]
[1740219302180,0.8108,2745.1,2744.3,4.28774236]
[1740219302484,0.8108,2745.1,2743.9,5.92]
[1740219302485,3.64311,2744.9,2743.9,5.37]
[1740219302620,3.64326,2744.8,2744.0,7.93205236]
[1740219302823,3.64338,2744.7,2744.0,7.93205236]
[1740219303224,3.64338,2744.7,2744.1,3.6441]
[1740219303429,3.64311,2744.9,2744.0,7.93205236]
[1740219303724,3.64311,2744.9,2744.2,3.64404]
[1740219304158,0.8108,2745.1,2744.5,3.64352]
[1740219304476,11.08676,2745.2,2744.5,3.64352]
[1740219304773,1.108676,2745.1,2744.5,3.64352]
[1740219305178,7.444,2745.2,2744.5,3.64352]
[1740219305347,7.444,2745.2,2744.7,3.64329]
[1740219305597,7.444,2745.2,2744.9,3.64307]
[1740219305782,7.444,2745.2,2745.1,3.64285]
[1740219306204,0.8282,2745.8,2745.1,5.37]
[1740219306530,11.91323,2746.5,2745.8,3.64188]
[1740219306740,1.191323,2746.4,2745.8,3.64188]
[1740219306936,8.2722,2746.5,2745.8,9.01188]
[1740219307098,7.444,2746.5,2745.8,5.37]
[1740219307299,7.444,2746.5,2746.0,3.64156]
[1740219307915,7.444,2746.5,2746.1,3.64151]
[1740219308279,7.444,2746.5,2745.8,5.37]
[1740219308486,3.64149,2746.2,2745.8,5.37]
[1740219308746,7.444,2746.5,2745.8,5.37]
[1740219309036,7.444,2746.5,2745.9,3.64179]
[1740219309451,7.444,2746.5,2745.8,5.37]
[1740219309617,7.444,2746.5,2745.8,9.65774236]
[1740219309952,7.444,2746.5,2746.2,3.64138]
[1740219310158,7.444,2746.5,2746.4,3.64113]
[1740219310332,1.09428,2747.9,2746.5,0.55]
[1740219310500,1.09428,2747.9,2747.5,3.63955]
[1740219310704,0.8282,2748.0,2747.2,3.64006]
[1740219310930,3.63865,2748.3,2747.3,3.63991]
[1740219311143,1.192565,2748.3,2747.5,3.63956]
[1740219311345,0.8282,2748.3,2747.7,3.6394]
[1740219311548,4.46682,2748.3,2747.5,3.63956]
[1740219312203,4.46682,2748.3,2747.6,3.63949]
[1740219312444,4.46682,2748.3,2747.5,3.63956]
[1740219312602,4.46682,2748.3,2747.4,5.37]
[1740219312603,3.6389,2748.1,2747.4,5.37]
[1740219312797,3.63911,2748.0,2747.4,5.37]
[1740219313004,3.6389,2748.1,2747.4,5.37]
[1740219313530,0.8282,2748.3,2747.4,5.37]
[1740219313531,3.63913,2748.0,2747.4,5.37]
[1740219313857,3.63887,2748.1,2747.4,5.37]
[1740219314150,3.63898,2748.1,2747.4,5.37]
[1740219314299,4.46684,2748.3,2747.5,3.63964]
[1740219314500,4.46684,2748.3,2747.6,3.63952]
[1740219314734,3.63837,2748.5,2747.7,3.63929]
[1740219314917,3.64361,2748.4,2747.7,3.63929]
[1740219315121,3.63866,2748.3,2747.4,5.37]
[1740219315321,0.005,2748.4,2747.7,3.63939]
[1740219315524,0.005,2748.4,2747.9,3.63908]
[1740219315738,0.005,2748.4,2747.7,3.6394]
[1740219315950,0.005,2748.4,2748.2,3.63872]
[1740219316121,0.005,2748.4,2748.1,5.37]
[1740219316637,0.005,2748.4,2748.1,9.00887]
[1740219317034,0.005,2748.4,2748.1,5.37]
[1740219317230,0.005,2748.4,2748.2,3.63872]
[1740219317723,0.005,2748.4,2748.3,3.63861]
[1740219317918,0.005,2748.4,2748.3,4.18861]
[1740219318169,0.005,2748.4,2748.3,0.55]
[1740219318540,0.005,2748.4,2748.3,4.18861]
[1740219318736,0.005,2748.4,2748.3,0.55]
[1740219318941,0.005,2748.4,2748.3,4.18861]
[1740219319519,0.005,2748.4,2748.3,3.63861]
[1740219319724,0.005,2748.4,2748.1,5.37]
[1740219320434,0.005,2748.4,2748.2,3.63873]
[1740219320739,0.005,2748.4,2748.1,5.37]
[1740219321068,0.005,2748.4,2748.1,9.00883]
[1740219321238,0.005,2748.4,2748.1,5.37]
[1740219321587,3.63862,2748.3,2748.1,5.37]
[1740219321870,0.8024,2748.4,2748.1,5.37]
[1740219322054,1.246486,2748.4,2748.1,5.37]
[1740219322253,3.63871,2748.3,2748.1,5.37]
[1740219322459,3.63901,2748.0,2747.5,5.37]
[1740219322756,1.246486,2748.4,2747.3,3.63993]
[1740219322757,3.63887,2748.2,2747.3,3.63993]
[1740219323382,0.8024,2748.4,2747.6,3.63943]
[1740219323671,3.63883,2748.2,2747.5,3.63958]
[1740219323877,4.44097,2748.4,2747.2,3.43]
[1740219323878,3.63946,2747.7,2747.2,3.43]
[1740219324074,3.63917,2747.9,2747.3,3.63984]
[1740219324369,3.63917,2747.9,2747.2,7.06994]
[1740219324571,3.63917,2747.9,2747.3,3.63993]
[1740219324777,3.63917,2747.9,2747.2,7.06994]
[1740219324952,3.63917,2747.9,2747.3,3.63991]
[1740219325366,4.43631,2748.1,2747.4,3.63968]
[1740219325659,4.9243507,2748.1,2747.4,3.63968]
[1740219325961,4.9243507,2748.1,2747.2,7.07]
[1740219326261,3.63915,2747.9,2747.2,7.07]
[1740219326559,4.9243507,2748.1,2747.3,3.63992]
[1740219326753,1.2854407,2748.1,2747.2,7.07]
[1740219326958,3.63923,2747.9,2747.3,3.63989]
[1740219327271,3.63923,2747.9,2747.3,9.00989]
[1740219327573,3.63928,2747.8,2747.3,5.37]
[1740219328013,0.7974,2748.1,2747.3,5.37]
[1740219328142,3.63973,2747.5,2747.3,5.37]
[1740219328469,0.7974,2748.1,2747.3,5.37]
[1740219328671,3.63909,2748.0,2747.4,3.63979]
[1740219328875,0.005,2748.4,2747.5,7.28774236]
[1740219329178,0.005,2748.4,2747.0,12.44024]
[1740219329179,3.63943,2747.7,2747.0,12.44024]
[1740219329383,0.7815,2747.8,2747.2,3.63997]
[1740219329530,0.7815,2747.8,2747.2,3.63995]
[1740219329923,0.7815,2747.8,2747.3,3.63992]
[1740219330148,0.7815,2747.8,2747.2,7.27992]
[1740219330348,0.7815,2747.8,2747.2,3.63995]
[1740219331631,0.7815,2747.8,2747.2,7.27991]
[1740219331829,0.7815,2747.8,2747.2,3.63995]
[1740219332271,0.7815,2747.8,2747.3,3.7242241]
[1740219332466,0.7815,2747.8,2747.3,0.0843041]
[1740219332666,4.42085,2747.8,2747.2,3.63995]
[1740219332842,0.7815,2747.8,2747.4,0.07919556]
[1740219333054,0.7815,2747.8,2747.2,3.63995]
[1740219333389,1.587498,2747.8,2747.5,0.07919556]
[1740219333581,1.587498,2747.8,2747.2,3.63995]
[1740219333761,1.587498,2747.8,2747.6,0.07919556]
[1740219334089,1.587498,2747.8,2747.7,0.07919556]
[1740219334272,1.587498,2747.8,2747.0,5.37]
[1740219334572,0.7815,2747.8,2747.7,0.07919556]
[1740219334752,0.7815,2747.8,2747.3,3.6398]
[1740219335070,0.7815,2747.8,2747.3,3.63989]
[1740219335242,0.7815,2747.8,2747.4,0.07919556]
[1740219335450,0.7815,2747.8,2747.5,3.63965]
[1740219335859,0.7815,2747.8,2747.6,0.07919556]
[1740219336195,4.42078,2747.8,2747.6,0.07919556]
[1740219336571,4.42078,2747.8,2747.2,3.63998]
[1740219336780,5.226761,2747.8,2747.7,0.07632837]
[1740219337095,7.27979,2747.4,2746.8,0.27798946]
[1740219337291,3.63998,2747.3,2746.8,0.27798946]
[1740219337588,3.63976,2747.5,2746.9,3.64044]
[1740219337794,3.6399,2747.4,2746.8,3.91848946]
[1740219338900,3.63998,2747.3,2746.8,3.91848946]
[1740219339202,3.6399,2747.4,2746.8,3.6405]
[1740219339497,3.6401,2747.2,2746.7,3.64072]
[1740219339795,3.63995,2747.3,2746.8,3.64058]
[1740219339997,7.27983,2747.4,2746.8,3.64058]
[1740219340200,3.64042,2747.0,2746.5,5.37]
[1740219340499,0.8216,2747.3,2746.5,5.37]
[1740219340798,4.46156,2747.3,2746.7,3.64065]
[1740219341003,3.64009,2747.2,2746.6,3.64086]
[1740219341186,7.28028,2747.2,2746.6,4.0657449]
[1740219341365,3.64009,2747.2,2746.6,4.0657449]
[1740219341565,3.64009,2747.2,2746.6,4.0656649]
[1740219341763,0.8216,2747.3,2746.6,4.0656649]
[1740219342161,0.8216,2747.3,2746.8,3.64052]
[1740219343208,3.64018,2747.2,2746.7,0.11397713]
[1740219343429,1.267753,2747.3,2746.8,3.64058]
[1740219343627,0.8216,2747.3,2746.8,3.64058]
[1740219343835,0.8216,2747.3,2746.9,3.64041]
[1740219344107,0.8216,2747.3,2746.5,9.2778423]
[1740219344316,4.46102,2747.7,2747.1,3.6401]
[1740219344601,1.267702,2747.7,2746.9,3.64041]
[1740219344782,3.63963,2747.6,2747.0,3.6403]
[1740219345394,3.63963,2747.6,2746.9,3.64041]
[1740219345565,3.63963,2747.6,2746.9,3.64037]
[1740219345768,3.63963,2747.6,2747.1,3.64018]
[1740219345987,0.8216,2747.7,2747.1,7.2803]
[1740219346201,0.8216,2747.7,2747.3,3.63985]
[1740219346411,0.8216,2747.7,2747.2,3.64005]
[1740219347506,0.8216,2747.7,2747.3,3.6399]
[1740219348023,0.8216,2747.7,2747.4,3.63968]
[1740219348184,0.7607,2748.0,2747.0,3.64033]
[1740219348573,0.7607,2748.0,2747.9,3.63914]
[1740219348783,7.434,2748.1,2747.9,3.63914]
[1740219348985,7.434,2748.1,2748.0,3.63901]
[1740219349216,0.005,2748.4,2748.3,3.63861]
[1740219350024,0.005,2748.4,2748.3,3.75251135]
[1740219351643,0.005,2748.4,2748.3,4.33508968]
[1740219351840,0.005,2748.4,2748.3,5.30958782]
[1740219352641,0.005,2748.4,2748.3,21.67427723]
[1740219353322,0.005,2748.4,2748.3,12.87427723]
[1740219355437,0.005,2748.4,2748.3,13.19827723]
[1740219356062,0.005,2748.4,2748.3,13.49975835]
[1740219356258,0.005,2748.4,2748.3,13.31751618]
[1740219358269,0.005,2748.4,2748.3,12.98641962]
[1740219359946,0.7607,2749.7,2748.6,3.63821]
[1740219360152,1.943933,2749.7,2749.1,3.63743]
[1740219360478,5.580693,2749.7,2749.1,3.63743]
[1740219360677,7.435,2749.9,2749.5,3.63694]
[1740219360828,7.435,2749.9,2749.3,3.6372]
[1740219361028,7.435,2749.9,2749.4,3.63709]
[1740219361374,3.63689,2749.6,2749.5,0.06544876]
[1740219361756,3.63689,2749.6,2749.2,0.27120354]
[1740219361975,3.63689,2749.6,2749.5,0.06544876]
[1740219362154,3.63689,2749.6,2749.2,0.27120354]
[1740219362356,3.63689,2749.6,2749.5,0.06544876]
[1740219362891,4.83869527,2749.8,2749.2,0.27120354]
[1740219363191,3.63678,2749.7,2749.5,0.06544876]
[1740219363491,3.63678,2749.7,2749.2,0.27120354]
[1740219363492,3.63678,2749.7,2749.6,0.06491258]
[1740219363692,3.63678,2749.7,2749.2,0.27120354]
[1740219363859,3.63678,2749.7,2749.6,0.06491258]
[1740219364062,3.63678,2749.7,2749.2,0.27120354]
[1740219364259,3.63676,2749.7,2749.6,0.06491258]
[1740219364557,3.63676,2749.7,2749.2,0.27120354]
[1740219364770,3.63676,2749.7,2749.6,0.06491258]
[1740219365282,3.63676,2749.7,2749.2,0.27120354]
[1740219365453,3.63676,2749.7,2749.6,0.06217839]
[1740219365656,3.63676,2749.7,2749.2,0.27120354]
[1740219365657,11.07152,2749.9,2749.2,0.27120354]
[1740219365849,11.07152,2749.9,2749.3,0.06217839]
[1740219366251,14.70811,2749.9,2749.3,0.06217839]
[1740219366453,11.07152,2749.9,2749.3,0.06217839]
[1740219366778,11.07152,2749.9,2749.6,3.63688]
[1740219366779,7.435,2749.9,2749.6,3.63688]
[1740219367479,11.90996027,2749.9,2749.7,0.06217839]
[1740219367683,7.435,2749.9,2749.6,3.6368]
[1740219367888,0.9490027,2750.0,2749.8,0.06217839]
[1740219368179,4.5853927,2750.0,2749.4,3.63704]
[1740219368387,0.9490027,2750.0,2749.9,0.06217839]
[1740219368585,0.9490027,2750.0,2749.5,3.63695]
[1740219368885,4.5853627,2750.0,2749.5,3.63695]
[1740219369085,4.5853627,2750.0,2749.6,0.06217839]
[1740219369251,0.9490027,2750.0,2749.6,0.06217839]
[1740219369454,4.5853827,2750.0,2749.4,7.27415]
[1740219369680,4.5853827,2750.0,2749.5,3.69917839]
[1740219369884,0.1497027,2750.0,2749.9,3.63649]
[1740219370262,0.1497027,2750.0,2749.9,3.69844715]
[1740219371057,0.1497027,2750.0,2749.9,4.52511078]
[1740219371289,0.1497027,2750.0,2749.9,3.97511078]
[1740219371481,0.1497027,2750.0,2749.9,0.06195715]
[1740219371786,0.1497027,2750.0,2749.2,0.27120354]
[1740219371787,3.63663,2749.8,2749.2,0.27120354]
[1740219372084,0.7573,2749.6,2749.3,0.05458486]
[1740219372254,0.7573,2749.6,2749.2,0.27120354]
[1740219372449,0.7573,2749.6,2749.3,0.05044795]
[1740219372751,4.3942,2749.6,2749.2,0.27120354]
[1740219372947,0.7573,2749.6,2749.4,0.04876564]
[1740219373155,0.7573,2748.9,2748.0,3.63901]
[1740219373355,3.63848,2748.5,2748.3,0.27906798]
[1740219373562,4.28774236,2749.3,2748.3,3.91755798]
[1740219373563,3.63742,2749.2,2748.3,3.91755798]
[1740219373761,3.63806,2748.8,2748.3,0.27906798]
[1740219374001,0.7573,2748.6,2747.7,3.9573]
[1740219374161,3.63834,2748.5,2747.7,0.318]
[1740219374348,3.63848,2748.4,2747.6,3.63953]
[1740219374550,4.28774236,2749.1,2748.2,3.63873]
[1740219374551,0.7573,2749.1,2748.2,3.63873]
[1740219374859,3.63825,2748.6,2747.9,0.27950513]
[1740219375176,0.7573,2749.1,2747.9,0.27950513]
[1740219375177,0.7573,2748.3,2747.9,0.27950513]
[1740219375375,0.7573,2748.6,2748.0,3.63899]
[1740219375556,0.7573,2748.6,2747.9,0.27950513]
[1740219375963,3.63849,2748.4,2747.9,0.27950513]
[1740219376195,3.63835,2748.5,2747.9,0.27950513]
[1740219376550,0.7573,2748.6,2747.5,0.32]
[1740219376758,3.63895,2748.1,2747.3,3.63984]
[1740219376965,3.63895,2748.1,2747.4,3.63977]
[1740219377367,3.63895,2748.1,2747.4,3.6398]
[1740219377799,3.63895,2748.1,2747.6,0.27009908]
[1740219379095,3.63876,2748.2,2747.6,0.27009908]
[1740219379899,3.63902,2748.0,2747.6,0.27009908]
[1740219380094,0.8049,2747.9,2746.9,3.64045]
[1740219380264,3.63964,2747.6,2747.3,0.26889608]
[1740219380459,4.28774236,2748.5,2747.3,0.26889608]
[1740219380460,0.8049,2748.8,2748.3,3.63855]
[1740219380666,3.63833,2748.6,2748.1,0.26752905]
[1740219380860,3.63849,2748.4,2747.8,3.63926]
[1740219381080,3.63849,2748.4,2747.6,6.63942]
[1740219381275,3.63912,2748.0,2747.3,3.63989]
[1740219381475,4.44271,2749.0,2748.3,3.6386]
[1740219381696,0.8049,2749.0,2748.1,3.63885]
[1740219381907,0.8049,2749.0,2747.8,0.318]
[1740219381908,0.8049,2749.0,2748.4,0.04366185]
[1740219382067,7.92496236,2749.4,2747.4,0.27411816]
[1740219382068,0.8049,2748.4,2747.4,0.27411816]
[1740219382273,0.8049,2748.4,2747.3,3.70642885]
[1740219382274,3.63928,2747.8,2747.5,0.04366185]
[1740219382574,0.8049,2748.4,2747.7,3.6393]
[1740219382773,4.44347,2748.4,2747.7,3.6393]
[1740219382985,3.63877,2748.2,2747.8,0.0406525]
[1740219383204,3.6391,2748.0,2747.3,0.26968897]
[1740219383426,3.6391,2748.0,2747.9,0.0406525]
[1740219383627,4.447084,2748.2,2747.4,3.6397]
[1740219383919,3.63927,2747.8,2747.5,0.0406525]
[1740219384130,3.63927,2747.8,2747.3,0.26968897]
[1740219384338,3.63927,2747.8,2747.6,0.0406525]
[1740219384605,3.63915,2747.9,2747.3,0.26968897]
[1740219384773,3.63915,2747.9,2747.7,0.0406525]
[1740219384973,3.63915,2747.9,2747.3,0.26968897]
[1740219385193,3.63903,2748.0,2747.8,0.0406525]
[1740219385407,0.8049,2748.1,2747.8,3.63917]
[1740219385710,3.63822,2748.6,2748.0,3.63889]
[1740219386382,3.63824,2748.6,2748.1,0.0406525]
[1740219386977,3.63836,2748.5,2747.8,3.63917]
[1740219387177,3.63824,2748.6,2748.2,0.0406525]
[1740219387503,3.63824,2748.6,2748.0,3.63892]
[1740219387673,3.63835,2748.5,2747.8,7.27832]
[1740219387874,3.63824,2748.6,2747.9,0.0406525]
[1740219388190,0.727619,2748.6,2747.9,0.0406525]
[1740219388334,3.63834,2748.5,2747.9,0.0406525]
[1740219388629,3.63862,2748.3,2747.7,3.6394]
[1740219388832,4.40178,2748.4,2748.0,0.0406525]
[1740219389002,0.7633,2748.4,2747.8,3.63925]
[1740219389329,4.40182,2748.4,2747.6,3.95652]
[1740219389522,3.63863,2748.3,2747.9,0.0406525]
[1740219389722,4.40182,2748.4,2747.7,3.63937]
[1740219389924,8.04039,2748.4,2748.0,0.0406525]
[1740219390229,4.40182,2748.4,2747.7,3.63937]
[1740219390437,4.40182,2748.4,2748.1,0.0406525]
[1740219390620,3.63823,2748.6,2748.0,3.639]
[1740219390940,7.431,2749.0,2748.1,3.63882]
[1740219390941,3.63784,2748.9,2748.1,3.63882]
[1740219391100,3.63822,2748.6,2748.1,0.0406525]
[1740219391301,3.63822,2748.6,2747.9,3.63905]
[1740219391519,3.63822,2748.6,2748.2,0.0406525]
[1740219391520,0.7633,2748.5,2748.2,0.0406525]
[1740219391835,0.7633,2748.5,2747.9,3.63905]
[1740219392039,3.63809,2748.7,2748.3,0.0406525]
[1740219392337,3.63813,2748.7,2748.4,0.0406525]
[1740219392536,3.63813,2748.7,2748.1,3.63879]
[1740219392737,3.63813,2748.7,2748.5,0.0406525]